bitfinex-derivatives/quotes_ETHF0:USTF0_20250331
["timestamp","ask_amount","ask_price","bid_price","bid_amount"]
[1743400019473,2.60199,1810.6,1810.5,3.72530289]
[1743400019669,5.80979,1810.6,1810.5,0.00830289]
[1743400020673,5.80979,1810.6,1810.0,4.31281]
[1743400020674,2.76191,1810.5,1810.0,3.717]
[1743400020976,1.10498,1810.2,1810.0,5.0958]
[1743400021276,1.10498,1810.2,1810.1,1.3788]
[1743400021878,1.3648,1810.3,1810.1,1.3788]
[1743400022077,5.76935,1810.4,1810.1,2.48375]
[1743400022266,1.10487,1810.3,1810.2,1.4327]
[1743400022471,1.10487,1810.3,1810.2,2.8115]
[1743400023773,3.2078,1810.4,1810.2,2.8115]
[1743400024078,3.2078,1810.4,1810.3,6.18817]
[1743400024671,3.2078,1810.4,1810.3,5.0833]
[1743400024867,3.2078,1810.4,1810.3,6.18817]
[1743400025176,0.7633,1810.6,1810.3,5.0833]
[1743400025379,1.11288289,1810.8,1810.4,4.5751]
[1743400025580,1.11288289,1810.8,1810.5,3.2246]
[1743400025775,1.11288289,1810.8,1810.6,6.29289]
[1743400026077,1.11288289,1810.8,1810.7,1.4712]
[1743400026275,0.00830289,1810.8,1810.7,1.4712]
[1743400026471,1.11287289,1810.8,1810.7,1.4712]
[1743400028583,1.11287289,1810.8,1810.7,2.57583]
[1743400028584,0.00830289,1810.8,1810.7,2.57583]
[1743400031482,0.00830289,1810.8,1810.7,1.4712]
[1743400031778,1.11287289,1810.8,1810.7,1.4712]
[1743400031977,0.00830289,1810.8,1810.7,2.57583]
[1743400033794,1.11287289,1810.8,1810.7,1.4712]
[1743400034082,0.00830289,1810.8,1810.7,2.57583]
[1743400034483,1.11287289,1810.8,1810.7,1.4712]
[1743400034688,3.27387289,1810.8,1810.7,1.4712]
[1743400036483,2.16930289,1810.8,1810.7,2.57583]
[1743400036784,0.00830289,1810.8,1810.7,2.57583]
[1743400036984,1.11287289,1810.8,1810.7,1.4712]
[1743400037988,0.00830289,1810.8,1810.7,2.57583]
[1743400038286,1.11287289,1810.8,1810.7,1.4712]
[1743400038986,0.00830289,1810.8,1810.7,2.57583]
[1743400040586,1.11287289,1810.8,1810.7,2.57583]
[1743400040787,1.11287289,1810.8,1810.7,1.4712]
[1743400041587,1.11287289,1810.8,1810.7,2.57583]
[1743400041785,0.00830289,1810.8,1810.7,2.57583]
[1743400044291,1.11287289,1810.8,1810.7,2.57583]
[1743400045191,0.00830289,1810.8,1810.7,2.57583]
[1743400046493,1.11287289,1810.8,1810.7,2.57583]
[1743400046690,0.00830289,1810.8,1810.7,2.57583]
[1743400046990,1.11287289,1810.8,1810.7,1.4712]
[1743400048592,1.11287289,1810.8,1810.7,2.57583]
[1743400049094,0.00830289,1810.8,1810.7,2.57583]
[1743400049994,1.44710289,1810.8,1810.7,2.57583]
[1743400051194,2.55167289,1810.8,1810.7,2.57583]
[1743400051493,1.44710289,1810.8,1810.7,2.57583]
[1743400051996,0.00830289,1810.8,1810.7,2.57583]
[1743400053297,26.97726248,1811.4,1811.3,1.10426]
[1743400053494,0.7278,1811.3,1811.2,4.81732]
[1743400053689,28.08150248,1811.4,1811.2,4.81732]
[1743400054095,28.08150248,1811.4,1811.3,1.83886]
[1743400054286,26.97726248,1811.4,1811.3,1.83886]
[1743400054592,0.7385,1811.5,1811.3,1.83886]
[1743400054593,1.85096289,1811.5,1811.3,1.83886]
[1743400054798,3.30136289,1811.5,1811.4,1.4425]
[1743400055099,1.85096289,1811.5,1811.4,1.4425]
[1743400056699,1.10423,1811.4,1811.2,3.72130289]
[1743400056990,1.85098289,1811.5,1811.3,1.3965]
[1743400057196,1.85098289,1811.5,1811.3,2.50076]
[1743400057592,0.74680289,1811.5,1811.4,1.3965]
[1743400057898,0.74680289,1811.5,1811.4,2.5007]
[1743400058097,0.74680289,1811.5,1811.4,1.3965]
[1743400058294,1.85094289,1811.5,1811.4,1.3965]
[1743400058992,0.74680289,1811.5,1811.4,2.5007]
[1743400059198,0.00830289,1811.5,1811.4,2.5007]
[1743400060691,0.00830289,1811.5,1811.4,5.7085]
[1743400061289,0.00830289,1811.5,1811.4,6.4331]
[1743400061490,0.00830289,1811.5,1811.4,7.1654]
[1743400062496,5.01151,1811.9,1811.7,1.104]
[1743400062692,5.01151,1811.9,1811.8,5.1068]
[1743400063202,3.9076,1811.9,1811.8,6.21076]
[1743400063702,1.10385,1812.0,1811.8,6.21076]
[1743400063887,1.10396,1811.8,1811.7,3.711]
[1743400064494,3.9484,1811.9,1811.3,3.2078]
[1743400064702,1.10416,1811.5,1811.4,3.711]
[1743400064996,1.1042,1811.4,1811.3,1.3948]
[1743400065190,1.8774,1811.4,1811.3,5.1058]
[1743400065798,0.7732,1811.4,1811.3,6.21006]
[1743400066701,1.10411,1811.6,1811.4,1.10419]
[1743400066902,0.7732,1811.6,1811.4,1.4768]
[1743400067201,1.10414,1811.5,1811.4,1.4768]
[1743400067701,1.87733,1811.6,1811.4,2.58097]
[1743400067901,1.10414,1811.5,1811.4,1.4768]
[1743400068101,1.87732,1811.6,1811.4,1.1042]
[1743400068695,1.10415,1811.5,1811.3,4.81522]
[1743400069794,1.87732,1811.6,1811.4,1.10419]
[1743400069995,3.37062,1811.6,1811.4,1.10419]
[1743400070196,3.37062,1811.6,1811.5,0.7103]
[1743400071597,3.37058,1811.6,1811.5,3.71]
[1743400071799,4.11768,1811.6,1811.5,3.71]
[1743400072309,1.10418,1811.5,1811.4,3.71]
[1743400072510,2.58488,1811.5,1811.4,3.71]
[1743400073008,2.58484,1811.5,1811.4,3.71]
[1743400074310,1.4807,1811.5,1811.4,3.71]
[1743400074614,2.58484,1811.5,1811.4,3.71]
[1743400079519,1.4807,1811.5,1811.2,0.00830289]
[1743400079821,4.31206,1811.3,1811.2,0.00830289]
[1743400080221,5.05556,1811.3,1811.2,0.00830289]
[1743400085621,5.76506,1811.3,1811.2,0.00830289]
[1743400085828,5.76506,1811.3,1811.2,3.71730289]
[1743400088632,1.1042,1811.4,1811.2,3.71730289]
[1743400088834,1.1042,1811.4,1811.3,1.427]
[1743400089027,1.1042,1811.4,1811.3,2.1304]
[1743400089627,2.5291,1811.4,1811.3,2.1304]
[1743400090127,2.5291,1811.4,1811.3,1.427]
[1743400091233,1.10426,1811.3,1811.2,3.71730289]
[1743400091426,3.27706,1811.3,1811.2,0.00830289]
[1743400091626,6.48486,1811.3,1811.2,0.00830289]
[1743400092927,6.48486,1811.3,1811.2,1.46300289]
[1743400093528,6.48486,1811.3,1811.2,0.00830289]
[1743400099046,1.10469,1810.6,1810.4,4.31256]
[1743400099239,1.10467,1810.7,1810.6,0.758]
[1743400099436,1.10467,1810.7,1810.6,5.892]
[1743400100139,4.31247,1810.7,1810.6,1.426]
[1743400100344,1.10469,1810.6,1810.5,0.00827974]
[1743400100642,3.92149,1810.6,1810.5,0.00827974]
[1743400101843,3.2078,1810.5,1809.3,1.10545]
[1743400102035,1.10532,1809.6,1809.4,2.1631]
[1743400102233,1.10532,1809.6,1809.5,1.4562]
[1743400102447,2.50582,1809.6,1809.5,1.4562]
[1743400108652,3.21607974,1809.7,1809.5,1.4562]
[1743400108955,3.21607974,1809.7,1809.5,2.56155]
[1743400109141,4.32131974,1809.7,1809.5,1.4562]
[1743400109545,3.21607974,1809.7,1809.5,2.56155]
[1743400109743,3.21607974,1809.7,1809.6,3.709]
[1743400110155,3.21607974,1809.7,1809.6,5.2206]
[1743400110647,4.32131974,1809.7,1809.6,5.2206]
[1743400110853,3.21607974,1809.7,1809.6,5.2206]
[1743400111553,3.21607974,1809.7,1809.6,6.3259]
[1743400112751,4.32131974,1809.7,1809.6,5.2206]
[1743400113055,0.00827974,1809.7,1809.6,6.3259]
[1743400113255,0.00827974,1809.7,1809.6,9.5337]
[1743400113653,5.7183,1810.1,1809.6,8.4284]
[1743400113859,4.31283,1810.1,1809.9,1.1051]
[1743400114056,4.31283,1810.1,1810.0,5.8707]
[1743400117054,5.78253,1810.1,1810.0,5.8707]
[1743400117662,2.57473,1810.1,1810.0,5.8707]
[1743400120952,1.4697,1810.1,1810.0,6.97576]
[1743400121154,4.32100574,1810.2,1810.0,6.97576]
[1743400121355,4.32100574,1810.2,1810.1,1.4044]
[1743400127765,1.10507,1810.0,1809.9,3.708]
[1743400128067,1.10507,1810.0,1809.9,5.1116]
[1743400131763,1.10512,1809.9,1809.8,6.9158]
[1743400131963,1.10512,1809.9,1809.8,8.3167]
[1743400132672,2.53742,1809.9,1809.8,8.3167]
[1743400133677,1.10505,1810.1,1809.8,5.1089]
[1743400133977,1.10506,1810.0,1809.9,2.47747]
[1743400134677,2.53733,1810.1,1809.9,2.47747]
[1743400134879,2.53733,1810.1,1810.0,1.3724]
[1743400135173,3.21602574,1810.2,1810.0,1.3724]
[1743400135174,0.00822574,1810.2,1810.1,1.10499]
[1743400135377,0.00822574,1810.2,1810.1,6.93399]
[1743400136774,1.11315574,1810.2,1810.1,6.93399]
[1743400137166,0.00822574,1810.2,1810.1,6.93399]
[1743400137378,0.00822574,1810.2,1810.1,3.22599]
[1743400137574,2.49655574,1810.2,1810.1,5.829]
[1743400139874,0.00822574,1810.2,1810.1,6.93399]
[1743400141977,1.40092574,1810.2,1810.1,6.93399]
[1743400142987,0.00822574,1810.2,1810.1,6.93399]
[1743400143483,0.00822574,1810.2,1810.1,10.14179]
[1743400150588,3.9693,1810.6,1810.4,1.10478]
[1743400150784,5.07404,1810.6,1810.5,2.1229]
[1743400151682,4.6741,1810.6,1810.4,0.00827974]
[1743400151888,2.54905,1810.5,1810.4,0.00827974]
[1743400152085,2.54905,1810.5,1810.4,1.40497974]
[1743400153489,2.54905,1810.5,1810.4,0.00827974]
[1743400154188,2.54905,1810.5,1810.4,1.51297974]
[1743400155291,1.4443,1810.5,1810.4,2.61778974]
[1743400155594,2.54905,1810.5,1810.4,1.51297974]
[1743400156793,1.4443,1810.5,1810.4,1.51297974]
[1743400156995,2.54905,1810.5,1810.4,1.51297974]
[1743400159997,2.54905,1810.5,1810.4,0.00827974]
[1743400160200,5.75685,1810.5,1810.4,0.00827974]
[1743400162902,2.76204,1810.4,1810.1,3.705]
[1743400163103,1.10493,1810.2,1810.1,3.705]
[1743400163601,2.53863,1810.2,1810.1,3.705]
[1743400163897,1.10499,1810.1,1810.0,1.4787]
[1743400164103,2.53869,1810.1,1810.0,1.48697974]
[1743400164296,2.53869,1810.1,1810.0,3.71327974]
[1743400166594,1.4337,1810.1,1810.0,5.09247974]
[1743400166795,2.53881,1810.1,1810.0,5.09247974]
[1743400167099,1.10511,1810.1,1810.0,5.09247974]
[1743400167703,2.53069,1810.2,1810.0,5.09247974]
[1743400168003,2.53069,1810.2,1810.1,1.3792]
[1743400168301,1.10509,1810.2,1810.1,1.3792]
[1743400168495,1.10511,1810.1,1810.0,3.71327974]
[1743400168696,1.10511,1810.1,1810.0,0.00827974]
[1743400169001,4.31291,1810.1,1810.0,0.00827974]
[1743400169400,1.10541,1809.6,1809.5,6.9128]
[1743400169602,1.10541,1809.6,1809.5,3.705]
[1743400169999,2.56691,1809.6,1809.5,5.1143]
[1743400170900,2.56691,1809.6,1809.4,1.11379974]
[1743400170901,1.10547,1809.5,1809.4,0.00827974]
[1743400171204,1.10547,1809.5,1809.4,3.71327974]
[1743400172807,1.10547,1809.5,1809.4,0.00827974]
[1743400173404,4.31327,1809.5,1809.4,0.00827974]
[1743400177510,2.7639,1809.4,1808.8,3.2078]
[1743400177701,1.10578,1809.0,1808.9,5.1859]
[1743400178707,4.31358,1809.0,1808.9,5.1859]
[1743400178901,4.31358,1809.0,1808.8,0.00827974]
[1743400178902,1.10584,1808.9,1808.8,0.00827974]
[1743400179102,2.60634,1808.9,1808.8,0.00827974]
[1743400179900,2.60634,1808.9,1808.5,29.0879]
[1743400179901,1.10602,1808.6,1808.5,29.0879]
[1743400180107,1.10602,1808.6,1808.5,1.4879]
[1743400180496,4.31382,1808.6,1808.5,1.4879]
[1743400183605,1.5005,1808.9,1808.5,1.4879]
[1743400183810,1.106,1808.7,1808.6,0.7578]
[1743400185914,1.106,1808.7,1808.6,4.4638]
[1743400186514,1.10588,1808.9,1808.6,8.77759]
[1743400186814,1.1059,1808.8,1808.7,0.7008]
[1743400187015,1.1059,1808.8,1808.7,2.1269]
[1743400187911,1.4621,1809.0,1808.7,2.1269]
[1743400188114,1.10588,1808.9,1808.8,1.4228]
[1743400191715,2.5679,1809.0,1808.8,2.52868]
[1743400192312,2.5679,1809.0,1808.9,1.3964]
[1743400192516,1.1058,1809.0,1808.9,1.3964]
[1743400194722,0.72167974,1809.1,1808.9,1.3964]
[1743400194922,1.10578,1809.0,1808.9,1.3964]
[1743400196921,1.11405974,1809.1,1808.9,1.3964]
[1743400197115,1.11405974,1809.1,1809.0,0.7344]
[1743400197320,1.11405974,1809.1,1809.0,1.4364]
[1743400197621,1.11405974,1809.1,1809.0,2.9002]
[1743400199416,1.1059,1808.8,1808.7,3.2078]
[1743400199924,0.7131,1809.0,1808.6,3.706]
[1743400200221,1.10596,1808.7,1808.6,3.706]
[1743400200821,1.10596,1808.7,1808.6,5.1833]
[1743400201622,0.7639,1808.9,1808.6,5.1833]
[1743400201823,1.1059,1808.8,1808.7,1.4773]
[1743400208222,1.10602,1808.6,1808.5,4.6499]
[1743400208430,1.10602,1808.6,1808.5,9.7193]
[1743400209431,0.7402,1808.7,1808.5,10.82538]
[1743400209432,1.8462,1808.7,1808.5,10.82538]
[1743400209721,1.8462,1808.7,1808.6,1.3644]
[1743400209914,1.10602,1808.6,1808.5,3.2078]
[1743400210923,1.10608,1808.5,1808.4,0.00827974]
[1743400211929,1.10627,1808.2,1808.1,1.4894]
[1743400212129,1.10625,1808.3,1808.1,1.4894]
[1743400212426,1.10627,1808.2,1808.1,1.4894]
[1743400213327,1.10627,1808.2,1808.1,2.8979]
[1743400214024,1.10627,1808.2,1808.1,4.00423]
[1743400214225,2.54475,1808.3,1808.1,4.00423]
[1743400214426,2.54475,1808.3,1808.2,1.4869]
[1743400215028,4.31397,1808.4,1808.2,2.59314]
[1743400215331,3.2078,1808.4,1808.2,1.4869]
[1743400215530,4.31394,1808.4,1808.3,1.4869]
[1743400215828,5.81794,1808.4,1808.3,1.4869]
[1743400216232,2.61014,1808.4,1808.3,1.4869]
[1743400216927,1.10621,1808.3,1808.2,3.705]
[1743400217228,2.61021,1808.3,1808.2,5.1919]
[1743400218034,2.61021,1808.3,1808.2,1.4869]
[1743400220333,1.10621,1808.3,1808.2,2.59317]
[1743400220736,1.10621,1808.3,1808.2,1.4869]
[1743400221532,1.10633,1808.1,1808.0,21.92107974]
[1743400222038,1.10633,1808.1,1808.0,18.71327974]
[1743400222439,1.81963,1808.1,1808.0,18.71327974]
[1743400222937,3.19023,1808.1,1808.0,18.71327974]
[1743400223333,3.19023,1808.1,1808.0,20.17437974]
[1743400224637,3.19023,1808.1,1808.0,16.46937974]
[1743400227540,2.0839,1808.1,1808.0,17.57576974]
[1743400227738,3.19023,1808.1,1808.0,17.24177974]
[1743400230046,3.19023,1808.1,1808.0,17.96947974]
[1743400231539,3.19023,1808.1,1808.0,15.00827974]
[1743400233036,3.19023,1808.1,1808.0,16.38027974]
[1743400233246,1.10633,1808.1,1808.0,16.38027974]
[1743400233841,2.59673,1808.1,1808.0,16.38027974]
[1743400240550,1.10617,1808.4,1808.2,1.10624]
[1743400240754,5.97276,1808.7,1808.3,2.8204]
[1743400240755,3.2078,1808.7,1808.3,2.8204]
[1743400241054,1.10598,1808.7,1808.6,3.2078]
[1743400241250,1.10598,1808.7,1808.6,6.9118]
[1743400241446,2.7786,1809.0,1808.6,6.9118]
[1743400241447,1.10594,1808.8,1808.6,9.0339]
[1743400241753,1.10594,1808.8,1808.7,2.0776]
[1743400246058,1.4132,1808.9,1808.7,2.0776]
[1743400246359,1.1059,1808.8,1808.7,0.6983]
[1743400260172,1.1059,1808.8,1808.7,2.0881]
[1743400260368,1.4132,1808.9,1808.8,1.1059]
[1743400260562,1.11403974,1809.1,1808.9,1.1058]
[1743400260763,1.10578,1809.0,1808.9,5.5514]
[1743400261563,4.72617974,1809.1,1808.6,3.2078]
[1743400261869,1.10596,1808.7,1808.6,6.9098]
[1743400262072,1.10596,1808.7,1808.6,7.5976]
[1743400262468,1.10594,1808.8,1808.6,7.5976]
[1743400262668,3.33729,1808.9,1808.7,1.10596]
[1743400262965,2.61597,1808.9,1808.7,1.10591]
[1743400263474,1.10587,1808.9,1808.7,1.10591]
[1743400264571,1.1059,1808.8,1808.7,1.10591]
[1743400264770,1.1059,1808.8,1808.6,8.70358]
[1743400265074,1.10596,1808.7,1808.6,3.8956]
[1743400265274,1.10596,1808.7,1808.6,7.5976]
[1743400269361,1.81386,1808.7,1808.6,7.5976]
[1743400270067,2.50176,1808.7,1808.6,7.5976]
[1743400270672,2.50176,1808.7,1808.6,3.2078]
[1743400270869,1.10612,1808.5,1808.3,3.9271]
[1743400271071,1.10612,1808.5,1808.4,4.80714]
[1743400271273,2.52866,1808.6,1808.4,4.80714]
[1743400272177,2.52866,1808.6,1808.3,3.9271]
[1743400272178,1.10608,1808.5,1808.3,5.03327]
[1743400272478,2.47848,1808.5,1808.4,3.701]
[1743400273179,2.47848,1808.5,1808.4,4.80714]
[1743400273378,1.3724,1808.5,1808.4,4.80714]
[1743400273978,2.47848,1808.5,1808.4,3.701]
[1743400274174,2.47848,1808.5,1808.4,4.80714]
[1743400274878,2.50181,1808.7,1808.5,1.10606]
[1743400275074,1.10602,1808.6,1808.5,4.31386]
[1743400275268,1.10602,1808.6,1808.5,3.2078]
[1743400276083,1.10602,1808.6,1808.5,5.03178]
[1743400276478,1.3958,1808.7,1808.5,5.03178]
[1743400276685,1.10602,1808.6,1808.5,5.03178]
[1743400280085,1.10602,1808.6,1808.5,6.44938]
[1743400280280,1.10602,1808.6,1808.5,5.3433]
[1743400281580,2.5018,1808.7,1808.5,6.44938]
[1743400281883,1.10596,1808.7,1808.6,2.5982]
[1743400282482,2.47833,1808.8,1808.6,2.5982]
[1743400282689,2.47833,1808.8,1808.7,1.4922]
[1743400282982,2.47833,1808.8,1808.7,4.7]
[1743400284681,2.47833,1808.8,1808.7,8.4]
[1743400290483,4.32182974,1809.1,1808.7,8.4]
[1743400290786,1.11402974,1809.1,1808.8,2.1983]
[1743400290989,1.11402974,1809.1,1808.9,2.56079]
[1743400291285,2.60562974,1809.1,1809.0,5.155]
[1743400292078,2.60562974,1809.1,1809.0,5.8802]
[1743400292280,0.00827974,1809.1,1809.0,6.98598]
[1743400292581,0.00827974,1809.1,1809.0,10.19378]
[1743400297789,23.76946248,1809.5,1809.4,1.10553]
[1743400297987,23.76946248,1809.5,1809.4,8.01233]
[1743400298182,20.4677039,1809.5,1809.4,10.51233]
[1743400298889,1.493,1810.0,1809.9,1.10523]
[1743400299092,1.493,1810.0,1809.9,4.80323]
[1743400299483,1.493,1810.0,1809.9,6.30523]
[1743400299678,1.493,1810.0,1809.9,7.02343]
[1743400300188,0.70577974,1810.1,1810.0,1.10517]
[1743400300388,2.15977974,1810.1,1810.0,2.55277]
[1743400301093,2.15977974,1810.1,1810.0,1.4476]
[1743400301387,2.15977974,1810.1,1810.0,4.6554]
[1743400301594,3.26488974,1810.1,1810.0,4.6554]
[1743400301991,2.15977974,1810.1,1810.0,4.6554]
[1743400302195,3.26488974,1810.1,1810.0,4.6554]
[1743400302485,2.15977974,1810.1,1810.0,5.76057]
[1743400302891,3.26488974,1810.1,1810.0,4.6554]
[1743400303194,2.15977974,1810.1,1810.0,5.76057]
[1743400304089,3.26488974,1810.1,1810.0,4.6554]
[1743400304493,2.15977974,1810.1,1810.0,5.76057]
[1743400304990,3.26488974,1810.1,1810.0,4.6554]
[1743400305592,2.15977974,1810.1,1810.0,5.76057]
[1743400306193,3.26488974,1810.1,1810.0,4.6554]
[1743400308193,3.26488974,1810.1,1810.0,5.76057]
[1743400308194,0.00827974,1810.1,1810.0,5.76057]
[1743400309586,0.00827974,1810.1,1810.0,6.19552042]
[1743400310695,0.00827974,1810.1,1810.0,5.76057]
[1743400312093,0.00827974,1810.1,1810.0,4.6554]
[1743400312390,1.11338974,1810.1,1810.0,5.1436]
[1743400312589,1.11338974,1810.1,1810.0,3.696]
[1743400312789,2.54668974,1810.1,1810.0,3.696]
[1743400314189,1.10517,1810.0,1809.8,3.2078]
[1743400314494,0.7267,1809.9,1809.8,4.31307]
[1743400314793,0.7267,1809.9,1809.8,9.47687]
[1743400314993,2.1517,1809.9,1809.8,9.47687]
[1743400315393,1.425,1809.9,1809.8,9.47687]
[1743400315593,0.73497974,1810.1,1810.0,1.10517]
[1743400315793,1.43327974,1810.1,1810.0,1.10517]
[1743400316187,1.43327974,1810.1,1810.0,2.55487]
[1743400317194,2.53838974,1810.1,1810.0,4.6575]
[1743400317697,3.22538974,1810.1,1810.0,4.6575]
[1743400318092,0.00827974,1810.1,1810.0,5.76267]
[1743400318293,0.00827974,1810.1,1810.0,4.31297]
[1743400318494,2.18657974,1810.1,1810.0,4.31297]
[1743400318790,3.29168974,1810.1,1810.0,4.5923]
[1743400319394,2.18657974,1810.1,1810.0,5.69747]
[1743400320191,3.29168974,1810.1,1810.0,5.69747]
[1743400320594,2.18657974,1810.1,1810.0,4.5923]
[1743400320798,2.18657974,1810.1,1810.0,6.9028]
[1743400320799,3.29168974,1810.1,1810.0,6.9028]
[1743400321001,3.29168974,1810.1,1810.0,3.695]
[1743400322595,2.18657974,1810.1,1810.0,4.80017]
[1743400322802,2.18657974,1810.1,1810.0,6.91637]
[1743400323101,2.18657974,1810.1,1810.0,10.12417]
[1743400323297,1.10523,1809.9,1809.8,3.2078]
[1743400323600,1.10535,1809.7,1809.6,6.9028]
[1743400324300,2.53795,1809.7,1809.6,6.9028]
[1743400324598,2.53795,1809.7,1809.6,3.695]
[1743400327603,2.53795,1809.7,1809.6,5.1119]
[1743400327898,1.10543,1809.6,1809.4,5.0558]
[1743400328095,2.49363,1809.6,1809.5,3.694]
[1743400328297,1.3882,1809.6,1809.5,5.1109]
[1743400328496,2.53601,1809.8,1809.5,5.1109]
[1743400328804,3.92421,1809.8,1809.6,2.52229]
[1743400328997,1.3882,1809.7,1809.6,1.10539]
[1743400329299,1.10547,1809.5,1809.4,5.05582]
[1743400329504,1.10547,1809.6,1809.4,8.74982]
[1743400329803,1.3882,1809.5,1809.4,8.74982]
[1743400330803,1.3882,1809.5,1809.4,8.74983]
[1743400330998,2.49367,1809.5,1809.4,8.74983]
[1743400331197,1.3882,1809.5,1809.4,8.74983]
[1743400331399,1.10544,1809.6,1809.5,1.10547]
[1743400331703,2.59758,1809.7,1809.6,1.10541]
[1743400331905,2.59758,1809.7,1809.6,3.2078]
[1743400333896,1.10541,1809.6,1809.5,3.694]
[1743400334096,2.49211,1809.6,1809.5,3.694]
[1743400336796,1.3867,1809.6,1809.3,0.00827974]
[1743400336999,1.3867,1809.6,1808.9,3.8902]
[1743400337000,5.3245,1809.5,1808.9,3.8902]
[1743400337206,4.86586,1809.4,1808.9,5.48224]
[1743400337504,1.10576,1809.1,1808.9,8.69004]
[1743400337709,1.3855,1809.0,1808.9,5.48224]
[1743400337907,1.3855,1809.0,1808.9,8.69004]
[1743400338208,0.00827974,1809.1,1809.0,1.10577]
[1743400338403,1.39377974,1809.1,1809.0,0.7316]
[1743400338703,1.39377974,1809.1,1809.0,1.83738]
[1743400338912,2.49949974,1809.1,1809.0,0.7316]
[1743400339102,1.39377974,1809.1,1809.0,1.83738]
[1743400340007,1.39377974,1809.1,1809.0,3.31458]
[1743400341105,0.00827974,1809.1,1809.0,3.31458]
[1743400341318,1.10549,1809.5,1809.3,1.10556]
[1743400341609,2.48729,1809.5,1809.4,1.4772]
[1743400344514,1.10553,1809.4,1809.3,3.694]
[1743400344814,3.25873,1809.4,1809.3,5.1409]
[1743400345110,2.1532,1809.4,1809.3,6.24649]
[1743400345310,2.1532,1809.4,1809.3,7.00219]
[1743400345507,2.1532,1809.4,1809.3,5.8966]
[1743400345811,3.25873,1809.4,1809.3,5.8966]
[1743400347816,3.25873,1809.4,1809.3,7.00219]
[1743400348015,1.4111,1809.4,1809.3,7.00219]
[1743400349417,2.51663,1809.4,1809.3,5.8966]
[1743400350316,1.10551,1809.5,1809.3,7.00214]
[1743400350617,1.10551,1809.5,1809.4,4.7202]
[1743400350810,1.10551,1809.5,1809.4,1.5124]
[1743400351007,1.10551,1809.5,1809.4,4.7202]
[1743400351211,1.10551,1809.5,1809.4,1.5124]
[1743400351410,2.53831,1809.5,1809.4,1.5124]
[1743400352012,2.53831,1809.5,1809.4,4.7202]
[1743400352212,2.53831,1809.5,1809.4,1.5124]
[1743400354823,0.00827974,1809.6,1809.5,1.10547]
[1743400355024,0.00827974,1809.6,1809.5,3.28077]
[1743400355226,1.11368974,1809.6,1809.5,2.1753]
[1743400356724,1.10553,1809.4,1809.3,0.7557]
[1743400356924,7.38911974,1809.6,1809.3,3.694]
[1743400357131,1.4095,1809.5,1809.3,5.1881]
[1743400357322,2.51497,1809.5,1809.4,1.4941]
[1743400363229,1.10559,1809.3,1809.2,7.6005]
[1743400363734,1.10559,1809.3,1809.2,3.9075]
[1743400364434,2.51779,1809.3,1809.2,5.3176]
[1743400368936,2.51779,1809.3,1809.2,4.6179]
[1743400369635,2.51779,1809.3,1809.2,3.2078]
[1743400370236,2.51779,1809.3,1809.2,4.6884]
[1743400372341,2.51779,1809.3,1809.2,1.4806]
[1743400373740,2.51779,1809.3,1809.2,2.2133]
[1743400374643,2.51779,1809.3,1809.2,5.4211]
[1743400374844,1.10559,1809.3,1809.2,5.4211]
[1743400375945,1.10557,1809.4,1809.2,6.52673]
[1743400376141,1.10557,1809.4,1809.3,2.1693]
[1743400376346,1.10557,1809.4,1809.3,5.8623]
[1743400378541,1.10557,1809.4,1809.3,1.4735]
[1743400378748,1.10559,1809.3,1809.2,3.2078]
[1743400378946,2.47959,1809.3,1809.2,3.2078]
[1743400379552,2.47959,1809.3,1809.2,4.6969]
[1743400379744,1.374,1809.3,1809.2,5.80256]
[1743400379949,1.10558,1809.4,1809.2,7.23006]
[1743400380149,1.10558,1809.4,1809.3,5.1195]
[1743400380553,1.10553,1809.4,1809.3,5.1195]
[1743400384447,1.38867974,1809.6,1809.3,6.22509]
[1743400384750,1.10552,1809.5,1809.4,1.4654]
[1743400386350,2.11697974,1809.6,1809.4,2.57088]
[1743400386351,1.11368974,1809.6,1809.4,2.57088]
[1743400386655,1.11368974,1809.6,1809.5,0.6951]
[1743400386855,1.11368974,1809.6,1809.5,2.8476]
[1743400389758,0.00827974,1809.6,1809.5,3.95307]
[1743400390357,1.11368974,1809.6,1809.5,3.95307]
[1743400390659,1.11368974,1809.6,1809.5,2.8476]
[1743400392366,1.439,1809.8,1809.5,2.8476]
[1743400392367,1.95440438,1810.2,1809.5,2.8476]
[1743400392667,1.10504,1810.3,1809.9,3.2078]
[1743400392864,2.56591,1810.3,1810.1,1.10507]
[1743400393065,2.56591,1810.3,1810.2,1.4423]
[1743400394865,0.00827974,1810.4,1810.2,1.4423]
[1743400395062,0.00827974,1810.4,1810.3,4.4002]
[1743400395465,0.00827974,1810.4,1810.3,5.8308]
[1743400396266,1.11319974,1810.4,1810.3,2.1398]
[1743400396466,2.53509974,1810.4,1810.3,1.4306]
[1743400396760,1.10504,1810.2,1810.1,0.73597974]
[1743400396967,1.10504,1810.2,1810.1,5.85657974]
[1743400397364,1.10504,1810.2,1810.1,1.43887974]
[1743400401766,1.4219,1810.3,1810.1,1.43887974]
[1743400402069,2.52691,1810.3,1810.1,2.54397974]
[1743400402274,1.4219,1810.3,1810.1,1.43887974]
[1743400402462,2.52688,1810.3,1810.2,1.4557]
[1743400404067,1.10504,1810.2,1810.1,0.00827974]
[1743400404374,1.10504,1810.2,1809.7,6.8968]
[1743400404375,1.10529,1809.8,1809.7,6.8968]
[1743400404573,1.10525,1809.9,1809.7,8.2779]
[1743400404872,1.10525,1809.9,1809.8,1.3811]
[1743400405676,1.10523,1809.9,1809.8,1.3811]
[1743400409575,1.10529,1809.8,1809.7,6.90507974]
[1743400409874,1.79429,1809.8,1809.7,6.90507974]
[1743400410075,1.79429,1809.8,1809.7,8.41137974]